bitfinex-derivatives/quotes_BTCF0:USTF0_20241117
["timestamp","ask_amount","ask_price","bid_price","bid_amount"]
[1731818051325,0.055329,90346.0,90341.0,0.055331]
[1731818051729,0.055329,90346.0,90342.0,0.055331]
[1731818052743,0.08888,90349.0,90345.0,0.055329]
[1731818052941,0.08888,90349.0,90346.0,0.055328]
[1731818053824,0.144207,90349.0,90341.0,0.055331]
[1731818054024,0.144207,90349.0,90342.0,0.055331]
[1731818054237,0.144207,90349.0,90345.0,0.055329]
[1731818054441,0.144207,90349.0,90346.0,0.055328]
[1731818054643,0.08888,90349.0,90340.0,0.1975002]
[1731818054938,0.055332,90340.0,90339.0,0.1975002]
[1731818055128,0.055333,90339.0,90335.0,0.1975002]
[1731818055342,0.055334,90337.0,90334.0,0.1975002]
[1731818055535,0.055334,90337.0,90335.0,0.1975002]
[1731818056530,0.055334,90337.0,90333.0,9.716e-05]
[1731818056935,0.055334,90337.0,90336.0,0.19771075]
[1731818057136,0.0643,90344.0,90336.0,0.19771075]
[1731818057137,0.055331,90343.0,90336.0,0.19771075]
[1731818057329,0.0643,90344.0,90338.0,0.19771075]
[1731818057641,0.05514824,90350.0,90343.0,0.19771075]
[1731818057945,0.02214824,90350.0,90345.0,0.25303975]
[1731818058125,0.02214824,90350.0,90346.0,0.055328]
[1731818058445,0.13239122,90352.0,90346.0,0.055328]
[1731818059029,0.055327,90349.0,90343.0,0.19771075]
[1731818060034,0.055327,90349.0,90343.0,0.25304075]
[1731818060234,0.3818468,90352.0,90342.0,0.19771075]
[1731818060546,0.05533,90344.0,90342.0,0.19771075]
[1731818061327,0.055327,90349.0,90343.0,0.19771075]
[1731818061535,0.13234381,90351.0,90343.0,0.19771075]
[1731818061725,0.13239122,90352.0,90348.0,0.055327]
[1731818062224,0.16635081,90354.0,90348.0,0.055327]
[1731818062428,0.29869462,90354.0,90348.0,0.25303775]
[1731818062634,0.29869462,90354.0,90344.0,0.26398052]
[1731818062635,0.13234381,90353.0,90350.0,0.055326]
[1731818062829,0.02214681,90354.0,90352.0,0.055324]
[1731818063731,0.02214681,90354.0,90353.0,0.19771075]
[1731818063934,0.13234381,90359.0,90357.0,0.055321]
[1731818064134,0.08888,90363.0,90361.0,0.055319]
[1731818064443,0.08888,90363.0,90362.0,0.19790363]
[1731818064639,0.04367966,90367.0,90359.0,0.26398052]
[1731818064840,0.417036,90368.0,90363.0,0.25315341]
[1731818065035,0.417036,90368.0,90364.0,0.00550699]
[1731818065036,0.416116,90368.0,90364.0,0.00550699]
[1731818065248,0.416116,90368.0,90363.0,0.25315341]
[1731818065249,0.416116,90368.0,90363.0,0.055318]
[1731818066043,0.45968231,90368.0,90363.0,0.055318]
[1731818066648,0.45968231,90368.0,90353.0,0.26398052]
[1731818066649,0.05532,90359.0,90353.0,0.26398052]
[1731818066837,0.0934,90358.0,90348.0,0.19769617]
[1731818067032,0.0934,90358.0,90349.0,0.00550943]
[1731818067362,0.055323,90355.0,90350.0,0.00550943]
[1731818067643,0.055323,90355.0,90351.0,0.00550943]
[1731818067844,0.055323,90355.0,90348.0,0.19769617]
[1731818068031,0.055323,90355.0,90349.0,0.00549336]
[1731818068232,0.055323,90355.0,90350.0,0.00549336]
[1731818068432,0.055323,90355.0,90348.0,0.19769617]
[1731818068433,0.055323,90355.0,90351.0,0.00549336]
[1731818068662,0.055323,90355.0,90352.0,0.00549576]
[1731818068950,0.055323,90355.0,90348.0,0.19769617]
[1731818069133,0.055323,90355.0,90347.0,0.25302317]
[1731818069441,0.09858796,90355.0,90347.0,0.055327]
[1731818070140,0.09858796,90355.0,90346.0,0.19769617]
[1731818070141,0.055325,90353.0,90348.0,0.00549293]
[1731818070342,0.055326,90351.0,90349.0,0.00549293]
[1731818070531,0.055326,90351.0,90350.0,0.00549293]
[1731818071143,0.055326,90350.0,90347.0,0.19769617]
[1731818071346,0.055327,90349.0,90345.0,0.19769617]
[1731818071848,0.055327,90349.0,90344.0,0.19769617]
[1731818072235,0.055327,90349.0,90343.0,0.19769617]
[1731818072434,0.055327,90349.0,90341.0,0.19769617]
[1731818073345,0.055327,90349.0,90342.0,0.19769617]
[1731818073549,0.055327,90349.0,90343.0,0.19769617]
[1731818073934,0.13724193,90358.0,90345.0,0.19769617]
[1731818073935,0.055323,90355.0,90345.0,0.19769617]
[1731818074136,0.055324,90354.0,90346.0,0.19769617]
[1731818074446,0.055324,90353.0,90346.0,0.19769617]
[1731818074750,0.26958574,90358.0,90346.0,0.19769617]
[1731818074751,0.08888,90352.0,90348.0,0.3608]
[1731818075047,0.08888,90352.0,90350.0,0.055326]
[1731818075349,0.08888,90352.0,90351.0,0.00553769]
[1731818075945,0.08888,90352.0,90350.0,0.25055986]
[1731818076242,0.08888,90352.0,90351.0,0.19769617]
[1731818076444,0.08888,90352.0,90350.0,0.25055986]
[1731818077436,0.08888,90352.0,90351.0,0.19769617]
[1731818077651,0.08888,90352.0,90350.0,0.25055986]
[1731818078643,0.08888,90352.0,90351.0,0.19769617]
[1731818078838,0.08888,90352.0,90350.0,0.25055986]
[1731818079038,0.08888,90352.0,90351.0,0.19769617]
[1731818079743,0.055325,90351.0,90350.0,0.19769617]
[1731818080054,0.08888,90352.0,90350.0,0.19790065]
[1731818080364,0.08888,90352.0,90348.0,0.055327]
[1731818080839,0.08888,90352.0,90351.0,0.19792283]
[1731818081241,0.08888,90352.0,90348.0,0.055327]
[1731818082639,0.08888,90352.0,90350.0,0.19796928]
[1731818082845,0.08888,90352.0,90348.0,0.19796928]
[1731818083042,0.055327,90349.0,90348.0,0.19796928]
[1731818083352,0.055327,90349.0,90347.0,0.19796928]
[1731818085144,0.08884,90348.0,90343.0,0.62478052]
[1731818085954,0.08884,90348.0,90345.0,0.055329]
[1731818087261,0.08884,90348.0,90345.0,0.31930952]
[1731818087440,0.08884,90348.0,90345.0,0.055329]
[1731818087645,0.08884,90348.0,90345.0,0.31930952]
[1731818088053,0.08884,90348.0,90346.0,0.00551894]
[1731818088249,0.08884,90348.0,90347.0,0.00551894]
[1731818089255,0.144167,90348.0,90347.0,0.20360478]
[1731818089445,0.18903842,90348.0,90347.0,0.20360478]
[1731818089946,0.18903842,90348.0,90347.0,0.0055017]
[1731818090145,0.18903842,90348.0,90347.0,0.20361474]
[1731818090543,0.18903842,90348.0,90346.0,0.19811304]
[1731818090954,0.18903842,90348.0,90334.0,0.087636]
[1731818090955,0.055329,90345.0,90344.0,0.19811304]
[1731818091144,0.055329,90345.0,90344.0,0.20361551]
[1731818091349,0.055329,90345.0,90344.0,0.00550247]
[1731818091748,0.055329,90345.0,90344.0,0.20361551]
[1731818092138,0.1326744,90346.0,90342.0,0.19811304]
[1731818092542,0.05533,90343.0,90342.0,0.19811304]
[1731818092750,0.1326744,90345.0,90340.0,0.1981231]
[1731818092947,0.5555744,90342.0,90336.0,0.1981231]
[1731818093149,0.055334,90337.0,90334.0,0.1981231]
[1731818093347,0.055334,90337.0,90335.0,0.00550152]
[1731818093553,0.055334,90337.0,90336.0,0.00550152]
[1731818094256,0.055336,90334.0,90333.0,0.19822026]
[1731818094947,0.055336,90334.0,90333.0,9.716e-05]
[1731818097848,0.10047696,90334.0,90333.0,9.716e-05]
[1731818098861,0.46127696,90334.0,90333.0,9.716e-05]
[1731818099059,0.55011696,90334.0,90333.0,9.716e-05]
[1731818103153,0.49478096,90334.0,90333.0,9.716e-05]
[1731818103661,0.08884,90340.0,90336.0,0.055334]
[1731818104047,0.00084,90342.0,90341.0,0.055331]
[1731818104247,0.08884,90346.0,90341.0,0.055331]
[1731818104452,0.08884,90346.0,90342.0,0.00552493]
[1731818104649,0.13361308,90346.0,90343.0,0.00552493]
[1731818104848,0.13361308,90346.0,90344.0,0.00552493]
[1731818105052,0.13361308,90346.0,90341.0,0.2534541]
[1731818105351,0.13361308,90346.0,90342.0,0.00552494]
[1731818105553,0.13361308,90346.0,90343.0,0.00552494]
[1731818105754,0.13361308,90346.0,90340.0,0.2284231]
[1731818105755,0.08884,90346.0,90344.0,0.06085394]
[1731818106056,0.36164,90351.0,90343.0,0.1981231]
[1731818106057,0.0888,90349.0,90343.0,0.1981231]
[1731818106263,0.0888,90349.0,90346.0,0.055328]
[1731818106650,0.0888,90349.0,90341.0,0.0648]
[1731818106850,0.0888,90349.0,90347.0,0.055328]
[1731818107748,0.055328,90347.0,90341.0,0.120131]
[1731818107949,0.0888,90349.0,90342.0,0.00556873]
[1731818108148,0.0888,90349.0,90336.0,0.26398052]
[1731818108149,0.055329,90345.0,90343.0,0.00556873]
[1731818108344,0.055329,90345.0,90329.0,0.055339]
[1731818108345,0.055333,90340.0,90337.0,0.1981231]
[1731818108567,0.055333,90340.0,90333.0,0.26407768]
[1731818108568,0.055333,90340.0,90336.0,0.1981231]
[1731818108755,0.055333,90340.0,90335.0,0.1981231]
[1731818108950,0.1880024,90347.0,90335.0,0.1981231]
[1731818109155,0.1326744,90346.0,90335.0,0.1981231]
[1731818109350,0.1326744,90346.0,90341.0,0.055331]
[1731818109563,0.0888,90349.0,90335.0,0.1981231]
[1731818109564,0.1326744,90347.0,90342.0,0.06085982]
[1731818109764,0.1326744,90347.0,90343.0,0.05533]
[1731818110065,0.1326744,90347.0,90335.0,0.1981231]
[1731818110066,0.2214744,90349.0,90338.0,0.1981231]
[1731818110366,0.0888,90350.0,90349.0,0.055327]
[1731818111063,0.15482134,90354.0,90353.0,0.055324]
[1731818111064,0.1326744,90354.0,90353.0,0.055324]
[1731818111263,0.1326744,90361.0,90353.0,0.47791177]
[1731818111569,0.1326744,90363.0,90355.0,0.1981231]
[1731818111765,0.055316,90367.0,90359.0,0.1981231]
[1731818112070,0.055316,90367.0,90365.0,0.055317]
[1731818112280,0.0888,90369.0,90368.0,0.055315]
[1731818114262,0.0888,90369.0,90368.0,0.06083395]
[1731818114462,0.0888,90369.0,90368.0,0.055315]
[1731818115372,0.0888,90369.0,90368.0,0.20296471]
[1731818115552,0.0888,90369.0,90363.0,0.19743544]
[1731818115553,0.055317,90365.0,90363.0,0.19743544]
[1731818115757,0.055318,90363.0,90362.0,0.19743544]
[1731818116070,0.0307,90368.0,90362.0,0.00550545]
[1731818116252,0.086015,90368.0,90363.0,0.00550545]
[1731818116458,0.086015,90368.0,90357.0,0.055322]
[1731818116656,0.086015,90368.0,90358.0,0.00550004]
[1731818116971,0.055319,90362.0,90354.0,0.19743544]
[1731818117173,0.055319,90362.0,90357.0,0.055321]
[1731818117357,0.086015,90368.0,90357.0,0.055321]
[1731818117562,0.086015,90368.0,90351.0,0.19743544]
[1731818117563,0.055317,90366.0,90351.0,0.19743544]
[1731818117763,0.055317,90366.0,90352.0,0.00550405]
[1731818118064,0.055317,90366.0,90361.0,0.055319]
[1731818119276,0.0307,90368.0,90365.0,0.055316]
[1731818119571,0.0888,90369.0,90364.0,0.055317]
[1731818119768,0.055316,90366.0,90358.0,0.055321]
[1731818120356,0.055316,90366.0,90359.0,0.05532]
[1731818120575,0.055316,90366.0,90360.0,0.05532]
[1731818124065,0.3608,90367.0,90354.0,0.055323]
[1731818124262,0.055319,90361.0,90354.0,0.055323]
[1731818124473,0.096,90360.0,90354.0,0.055323]
[1731818124662,0.096,90360.0,90347.0,0.3936]
[1731818124972,0.0888,90369.0,90365.0,0.055316]
[1731818125478,0.0888,90368.0,90366.0,0.055316]
[1731818126271,0.07745894,90373.0,90366.0,0.055316]
[1731818126569,0.0888,90372.0,90366.0,0.055316]
[1731818126775,0.0888,90372.0,90356.0,0.55823544]
[1731818126776,0.02214694,90373.0,90364.0,0.3608]
[1731818126955,0.02214694,90373.0,90368.0,0.055315]
[1731818127672,0.0888,90372.0,90368.0,0.055315]
[1731818128374,0.0888,90372.0,90369.0,0.055314]
[1731818130473,0.144113,90372.0,90369.0,0.055314]
[1731818130969,0.144113,90372.0,90364.0,0.3608]
[1731818131176,0.144113,90372.0,90365.0,0.00555108]
[1731818131473,0.144113,90372.0,90364.0,0.3608]
[1731818131474,0.055321,90358.0,90357.0,0.19752004]
[1731818131768,0.055321,90358.0,90349.0,0.3608]
[1731818131769,0.08876,90358.0,90349.0,0.3608]
[1731818131971,0.0956,90357.0,90350.0,0.00553042]
[1731818132279,0.0956,90357.0,90349.0,0.3608]
[1731818132462,0.055325,90352.0,90350.0,0.00553106]
[1731818132660,0.055325,90352.0,90349.0,0.3608]
[1731818133473,0.055325,90352.0,90350.0,0.00552174]
[1731818133773,0.055325,90352.0,90349.0,0.3608]
[1731818133969,0.055325,90352.0,90350.0,0.00552951]
[1731818134174,0.055325,90352.0,90349.0,0.3608]
[1731818134372,0.055325,90352.0,90350.0,0.00553054]
[1731818134568,0.055325,90352.0,90351.0,0.00563419]
[1731818135960,0.47791177,90355.0,90338.0,0.19752004]
[1731818136161,0.47791177,90355.0,90334.0,0.26398052]
[1731818136162,0.055331,90342.0,90339.0,0.00564399]
[1731818136369,0.12026,90341.0,90340.0,0.00564399]
[1731818136569,0.12026,90341.0,90333.0,9.716e-05]
[1731818136761,0.12026,90341.0,90334.0,0.00567044]
[1731818136961,0.12026,90341.0,90336.0,0.055334]
[1731818137172,0.12026,90341.0,90337.0,0.00567044]
[1731818137373,0.12026,90341.0,90336.0,0.055334]
[1731818137374,0.12026,90341.0,90338.0,0.00567044]
[1731818137558,0.12026,90341.0,90339.0,0.00567044]
[1731818137761,0.175592,90341.0,90340.0,0.00567044]
[1731818138558,0.175592,90341.0,90333.0,9.716e-05]
[1731818138778,0.055334,90337.0,90334.0,0.00566596]
[1731818138967,0.055334,90337.0,90335.0,0.00566596]
[1731818139161,0.055334,90337.0,90336.0,0.00566596]
[1731818139565,0.055334,90337.0,90336.0,0.00561589]
[1731818140477,0.055334,90337.0,90333.0,9.716e-05]
[1731818140779,0.055335,90336.0,90334.0,0.00562757]
[1731818140970,0.055335,90336.0,90335.0,0.00562757]
[1731818141373,0.032,90340.0,90333.0,9.716e-05]
[1731818141576,0.055335,90335.0,90333.0,9.716e-05]
[1731818141876,0.055335,90335.0,90334.0,0.00561032]
[1731818142375,0.055335,90335.0,90333.0,9.716e-05]
[1731818145182,0.08876,90334.0,90333.0,0.05543316]
[1731818145476,0.08876,90334.0,90333.0,0.06101304]
[1731818146375,0.08876,90334.0,90333.0,0.00567704]
[1731818147079,0.08876,90334.0,90333.0,0.00564773]
[1731818147290,0.08876,90334.0,90333.0,9.716e-05]
[1731818148574,0.18386,90334.0,90333.0,9.716e-05]
[1731818151287,0.12096,90334.0,90333.0,9.716e-05]
[1731818151492,0.08876,90334.0,90333.0,9.716e-05]
[1731818152490,0.02214783,90341.0,90333.0,9.716e-05]
[1731818152692,0.08876,90335.0,90334.0,0.0609141]
[1731818153075,0.08876,90335.0,90334.0,0.055336]
[1731818154486,0.055335,90336.0,90334.0,0.06092099]
[1731818154691,0.08876,90340.0,90338.0,0.055333]
[1731818154986,0.055331,90342.0,90340.0,0.055332]
[1731818154987,0.144091,90342.0,90340.0,0.055332]
[1731818155185,0.3608,90351.0,90336.0,0.0333]
[1731818155388,0.08876,90350.0,90343.0,0.05533]
[1731818155597,0.40449605,90351.0,90345.0,0.055328]
[1731818155598,0.055329,90346.0,90345.0,0.055328]
[1731818158093,0.055325,90352.0,90345.0,0.3608]
[1731818158293,0.055322,90357.0,90355.0,0.055323]
[1731818160484,0.055322,90357.0,90356.0,0.0055828]
[1731818161691,0.055322,90357.0,90353.0,0.19752004]
[1731818161896,0.055322,90357.0,90354.0,0.00557871]
[1731818162100,0.055322,90357.0,90355.0,0.00557871]
[1731818162395,0.055322,90357.0,90351.0,0.19752004]
[1731818162588,0.055322,90357.0,90352.0,0.00557824]
[1731818162784,0.055322,90357.0,90353.0,0.00557824]
[1731818162995,0.055322,90357.0,90354.0,0.00557824]
[1731818163195,0.055322,90357.0,90355.0,0.00557824]
[1731818163394,0.055322,90357.0,90351.0,0.19752004]
[1731818163700,0.11090598,90358.0,90352.0,0.20306259]
[1731818163881,0.055323,90355.0,90353.0,0.00554255]
[1731818164085,0.055323,90355.0,90354.0,0.00554255]
[1731818165101,0.0936,90357.0,90354.0,0.00554255]
[1731818165283,0.0936,90357.0,90355.0,0.06086555]
[1731818165490,0.0936,90357.0,90356.0,0.00554255]
[1731818167299,0.11090598,90358.0,90355.0,0.055323]
[1731818167594,0.11090598,90358.0,90356.0,0.00553739]
[1731818167798,0.11090598,90358.0,90355.0,0.055323]
[1731818167988,0.11090598,90358.0,90356.0,0.00554009]
[1731818168297,0.11090598,90358.0,90355.0,0.055323]
[1731818168487,0.11090598,90358.0,90356.0,0.00553963]
[1731818168796,0.11090598,90358.0,90355.0,0.055323]
[1731818168982,0.11090598,90358.0,90356.0,0.00551401]
[1731818169185,0.11090598,90358.0,90355.0,0.055323]
[1731818169389,0.11090598,90358.0,90356.0,0.06083598]
[1731818169591,0.11090598,90358.0,90356.0,0.055322]
[1731818169794,0.11090598,90358.0,90357.0,0.00551353]
[1731818170093,0.00084,90362.0,90360.0,0.055319]
[1731818170292,0.1326744,90372.0,90371.0,0.055313]
[1731818170293,0.08872,90372.0,90371.0,0.055313]
[1731818170504,0.02214598,90373.0,90371.0,0.055313]
[1731818171489,0.02214598,90373.0,90372.0,0.00566149]
[1731818171884,0.02214598,90373.0,90367.0,0.3608]
[1731818171885,0.00013772,90374.0,90373.0,0.055312]
[1731818172199,0.00013772,90374.0,90373.0,0.06092866]
[1731818172801,0.00013772,90374.0,90373.0,0.07005025]
[1731818173501,0.00013772,90374.0,90373.0,0.07500038]
[1731818173793,0.00013772,90374.0,90373.0,0.27280764]
[1731818174193,0.0318,90395.0,90391.0,0.055301]
[1731818174403,0.055294,90402.0,90393.0,0.0553]
[1731818174696,0.08872,90401.0,90397.0,0.055297]
[1731818174899,0.08872,90401.0,90398.0,0.055296]
[1731818175099,0.08872,90401.0,90389.0,0.3608]
[1731818175100,0.055296,90400.0,90393.0,0.055299]
[1731818175295,0.055296,90400.0,90397.0,0.00010674]
[1731818175296,0.05537608,90400.0,90397.0,0.00010674]
[1731818175597,0.08880008,90400.0,90398.0,0.055297]
[1731818176105,8.008e-05,90400.0,90399.0,0.36647775]
[1731818176398,8.008e-05,90400.0,90399.0,0.3608]
[1731818176597,8.008e-05,90400.0,90399.0,0.36647293]
[1731818177002,8.008e-05,90400.0,90399.0,0.36574399]
[1731818177186,8.008e-05,90400.0,90399.0,0.3608]
[1731818178009,8.008e-05,90400.0,90399.0,0.69268]
[1731818178208,8.008e-05,90400.0,90399.0,0.69754841]
[1731818179707,0.02214598,90418.0,90399.0,0.69754841]
[1731818179708,0.08868,90414.0,90413.0,0.055287]
[1731818180903,0.00012737,90416.0,90414.0,0.055287]
[1731818181319,0.00012737,90416.0,90415.0,0.3608]
[1731818181720,0.00012737,90416.0,90415.0,0.47140111]
[1731818181902,0.00012737,90416.0,90415.0,0.47630186]
[1731818183505,0.00012737,90416.0,90415.0,0.00490075]
[1731818183713,0.00012737,90416.0,90414.0,0.055287]
[1731818184316,0.00012737,90416.0,90415.0,0.4714005]
[1731818184618,0.00012737,90416.0,90415.0,0.4762242]
[1731818185124,0.00012737,90416.0,90415.0,0.48176825]
[1731818186518,0.00012737,90416.0,90415.0,0.5264119]
[1731818187208,0.00012737,90416.0,90415.0,0.48176825]
[1731818187403,0.00012737,90416.0,90415.0,0.0048237]
[1731818187717,0.00012737,90416.0,90414.0,0.055287]
[1731818192510,0.47803914,90416.0,90397.0,0.00010674]
[1731818192718,0.05529,90410.0,90404.0,0.055293]
[1731818193218,0.0615,90415.0,90404.0,0.055293]
[1731818193428,0.0615,90415.0,90397.0,0.00010674]
[1731818193429,0.3608,90408.0,90397.0,0.00010674]
[1731818193720,0.055296,90399.0,90397.0,0.00010674]
[1731818193917,0.0301,90398.0,90397.0,0.00010674]
[1731818194619,0.0301,90398.0,90375.0,0.3608]
[1731818194620,0.0301,90398.0,90381.0,0.055307]
[1731818194823,0.3608,90387.0,90381.0,0.055307]
[1731818195025,0.3608,90387.0,90384.0,0.055305]
[1731818195026,0.15284,90386.0,90384.0,0.055305]
[1731818195417,0.0301,90398.0,90397.0,0.055297]
[1731818195622,0.0051,90419.0,90415.0,0.055286]
[1731818195916,0.36164,90422.0,90415.0,0.055286]
[1731818196118,0.3608,90422.0,90415.0,0.055286]
[1731818197218,0.08864,90427.0,90415.0,0.055286]
[1731818198621,0.05528,90426.0,90415.0,0.055286]
[1731818198921,0.15480395,90434.0,90415.0,0.055286]
[1731818198922,0.08864,90429.0,90415.0,0.055286]
[1731818199224,0.055279,90428.0,90415.0,0.055286]
[1731818199427,0.1326744,90427.0,90415.0,0.055286]
[1731818200017,0.08864,90429.0,90415.0,0.416086]
[1731818200418,0.08864,90431.0,90415.0,0.416086]
[1731818200613,0.08864,90431.0,90415.0,0.43039043]
[1731818200821,0.08864,90431.0,90415.0,0.416086]
[1731818201610,0.08864,90431.0,90415.0,0.43038631]
[1731818203534,0.08864,90431.0,90415.0,0.416086]
[1731818204022,0.08864,90431.0,90415.0,0.42158348]
[1731818204413,0.08864,90431.0,90415.0,0.61939074]
[1731818204829,0.08864,90431.0,90415.0,0.63381162]
[1731818205012,0.08864,90431.0,90415.0,0.43600436]
[1731818205210,0.08864,90431.0,90415.0,0.63333736]
[1731818205428,0.08864,90431.0,90415.0,0.43600153]
[1731818205625,0.08864,90430.0,90415.0,0.43600153]
[1731818205815,0.143917,90430.0,90415.0,0.43600153]
[1731818206317,0.143917,90430.0,90415.0,0.43050688]
[1731818207221,0.143917,90430.0,90415.0,0.43602094]
[1731818208628,0.143917,90430.0,90415.0,0.42160006]
[1731818209024,0.08876737,90416.0,90415.0,0.36631565]
[1731818209235,0.08876737,90416.0,90407.0,0.3608]
[1731818209236,0.055289,90410.0,90407.0,0.3608]
[1731818209431,0.1326744,90414.0,90407.0,0.416091]
[1731818209733,0.1326744,90413.0,90407.0,0.416091]
[1731818209925,0.120486,90415.0,90407.0,0.416091]
[1731818209926,0.1326744,90412.0,90407.0,0.416091]
[1731818210318,0.1326744,90413.0,90407.0,0.416091]
[1731818210632,0.1326744,90413.0,90408.0,0.05529]
[1731818211018,0.1326744,90413.0,90407.0,0.3608]
[1731818211225,0.1326744,90413.0,90409.0,0.05529]
[1731818212224,0.1326744,90412.0,90409.0,0.05529]
[1731818212421,0.1326744,90413.0,90409.0,0.05529]
[1731818212930,0.1879624,90412.0,90407.0,0.3608]
[1731818213133,0.0652,90415.0,90407.0,0.3608]
[1731818213134,0.1879634,90411.0,90407.0,0.3608]
[1731818213337,0.1326744,90410.0,90407.0,0.3608]
[1731818213522,0.1326744,90409.0,90407.0,0.3608]
[1731818214330,0.1326744,90409.0,90393.0,0.47855177]
[1731818214331,0.80975177,90408.0,90393.0,0.00064]
[1731818214634,0.3608,90400.0,90380.0,0.40414997]
[1731818214826,0.08864,90399.0,90398.0,0.055296]
[1731818215340,0.00084,90400.0,90398.0,0.055296]
[1731818215651,0.08864,90404.0,90403.0,0.055294]
[1731818216637,0.0652,90415.0,90401.0,0.19741043]
[1731818216844,0.36092737,90416.0,90415.0,0.055286]
[1731818217022,0.00012737,90416.0,90415.0,0.055286]
[1731818217342,0.00012737,90416.0,90412.0,0.00056]
[1731818217538,0.00012737,90416.0,90410.0,0.055289]
[1731818218523,0.00012737,90416.0,90412.0,0.055288]
[1731818220639,0.00012737,90416.0,90414.0,0.055286]
[1731818221645,0.00012737,90416.0,90415.0,0.0325]
[1731818222722,0.13739849,90435.0,90415.0,0.04686254]
[1731818222723,0.08904,90428.0,90415.0,0.04686254]
[1731818222940,0.0051,90435.0,90434.0,0.055275]
[1731818222941,0.08904,90435.0,90434.0,0.055275]
[1731818223633,0.08913575,90435.0,90434.0,0.055275]
[1731818223943,9.575e-05,90435.0,90434.0,0.055275]
[1731818224126,9.575e-05,90435.0,90434.0,0.06077163]
[1731818226258,9.575e-05,90435.0,90434.0,0.25828261]
[1731818226750,9.575e-05,90435.0,90434.0,0.06086155]
[1731818227247,9.575e-05,90435.0,90434.0,0.25837253]
[1731818227429,9.575e-05,90435.0,90434.0,0.06086155]
[1731818227931,9.575e-05,90435.0,90434.0,0.06086865]
[1731818228336,9.575e-05,90435.0,90434.0,0.06087493]
[1731818230751,0.08904,90447.0,90434.0,0.26326773]
[1731818230933,0.08904,90447.0,90446.0,0.055267]
[1731818231330,0.2178286,90456.0,90444.0,0.3608]
[1731818231537,0.08553011,90456.0,90448.0,0.055266]
[1731818231840,0.00012705,90450.0,90449.0,0.055265]
[1731818234650,0.00012705,90450.0,90444.0,0.055268]
[1731818235045,0.00012705,90450.0,90433.0,0.3913]
[1731818235046,0.00012705,90450.0,90445.0,0.055268]
[1731818236851,0.05539205,90450.0,90445.0,0.055268]
[1731818238456,0.05539205,90450.0,90446.0,0.055267]
[1731818238839,0.05539205,90450.0,90433.0,0.0305]
[1731818238840,0.33168,90449.0,90433.0,0.0305]
[1731818239156,0.3608,90438.0,90433.0,0.085775]
[1731818239357,0.08904,90437.0,90433.0,0.085775]
[1731818239648,0.08904,90437.0,90434.0,0.055274]
[1731818241046,0.08904,90436.0,90434.0,0.055274]
[1731818241845,0.08904,90436.0,90433.0,0.0305]
[1731818243849,0.08904,90436.0,90434.0,0.055274]
[1731818244257,0.04377589,90440.0,90434.0,0.055274]
[1731818244461,0.04377589,90440.0,90433.0,0.0305]
[1731818244462,0.08904,90439.0,90437.0,0.055273]
[1731818244763,0.08904,90438.0,90433.0,0.0305]
[1731818244951,0.08904,90437.0,90434.0,0.055275]
[1731818245259,0.08904,90436.0,90434.0,0.055275]
[1731818245441,0.08904,90435.0,90434.0,0.055275]
[1731818246949,0.08904,90435.0,90433.0,0.0305]
[1731818247260,0.08904,90435.0,90433.0,0.085775]
[1731818247858,0.49309849,90443.0,90434.0,0.11711177]
[1731818248160,0.08904,90442.0,90441.0,0.05527]
[1731818249360,0.3608,90443.0,90441.0,0.05527]
[1731818250155,0.08904,90444.0,90443.0,0.055269]
[1731818250860,0.13229849,90448.0,90439.0,0.3608]
[1731818251162,0.04476531,90450.0,90446.0,0.055267]
[1731818251163,0.08904,90447.0,90446.0,0.055267]
[1731818251552,0.00012705,90450.0,90446.0,0.055267]
[1731818251748,0.00012705,90450.0,90449.0,0.416065]
[1731818252264,0.00012705,90450.0,90449.0,0.055265]
[1731818252765,0.13250648,90450.0,90449.0,0.055265]
[1731818253060,0.00012705,90450.0,90449.0,0.055265]
[1731818253263,0.13258643,90450.0,90449.0,0.055265]
[1731818253760,0.00012705,90450.0,90449.0,0.055265]
[1731818255651,0.08864,90458.0,90457.0,0.055261]
[1731818255866,0.08864,90458.0,90455.0,0.18944985]
[1731818256071,0.13245938,90464.0,90463.0,0.055257]
[1731818256286,0.08864,90469.0,90463.0,0.53316877]
[1731818256473,0.08864,90472.0,90471.0,0.055252]
[1731818256658,8.938e-05,90472.0,90471.0,0.05537652]
[1731818257754,8.938e-05,90472.0,90471.0,0.41617652]
[1731818258063,8.938e-05,90472.0,90471.0,0.53328829]
[1731818280285,8.938e-05,90472.0,90471.0,0.05537652]
[1731818288893,0.13267528,90472.0,90471.0,0.05537652]
[1731818289093,8.938e-05,90472.0,90471.0,0.05537652]
[1731818289792,0.0637,90489.0,90477.0,0.055248]
[1731818289793,0.1325859,90481.0,90477.0,0.055248]
[1731818289994,0.16542976,90491.0,90480.0,0.47791177]
[1731818290199,0.16542976,90494.0,90492.0,0.055239]
[1731818290402,0.16542976,90497.0,90494.0,0.055238]
[1731818290693,0.00013377,90497.0,90496.0,0.11711177]
[1731818290882,0.00013377,90497.0,90496.0,0.14871177]
[1731818291500,0.00013377,90497.0,90496.0,0.41192571]
[1731818292490,0.00013377,90497.0,90496.0,0.14871177]
[1731818293897,0.00013377,90497.0,90496.0,0.44492571]
[1731818294103,0.00013377,90497.0,90496.0,0.18171177]
[1731818294996,0.00013377,90497.0,90496.0,0.22593627]
[1731818295302,0.00013377,90497.0,90496.0,0.19293627]
[1731818296001,0.00013377,90497.0,90496.0,0.0316]
[1731818296184,0.00013377,90497.0,90495.0,0.055237]
[1731818299006,0.00013377,90497.0,90486.0,0.3608]
[1731818299007,0.055242,90490.0,90486.0,0.3608]
[1731818299197,0.055244,90485.0,90484.0,0.055244]
[1731818299392,0.087341,90489.0,90486.0,0.055243]
[1731818299707,0.087341,90489.0,90487.0,0.055242]
[1731818300092,0.16542976,90495.0,90480.0,0.04496433]
[1731818300093,0.21090397,90497.0,90486.0,0.11711177]
[1731818300299,0.08856,90496.0,90493.0,0.055238]
[1731818301390,0.04547421,90497.0,90493.0,0.055238]
[1731818301391,0.08856,90495.0,90493.0,0.055238]
[1731818301806,0.143797,90495.0,90493.0,0.055238]
[1731818302104,0.143797,90495.0,90489.0,0.055241]
[1731818302105,0.055239,90494.0,90489.0,0.055241]
[1731818302301,0.416039,90493.0,90489.0,0.055241]
[1731818302491,0.447439,90493.0,90489.0,0.055241]